bitfinex-derivatives/quotes_ETHF0:USTF0_20250404
["timestamp","ask_amount","ask_price","bid_price","bid_amount"]
[1743798165487,2.61272,1808.9,1808.8,1.1061]
[1743798169395,1.10612,1808.8,1808.7,1.81323]
[1743798169696,2.52082,1808.8,1808.7,3.33473]
[1743798170895,1.10618,1808.7,1808.6,1.84339]
[1743798171091,6.23688,1808.7,1808.6,4.10549]
[1743798172093,6.67615172,1808.7,1808.6,4.10549]
[1743798174793,6.67615172,1808.7,1808.6,0.7372]
[1743798175092,6.67615172,1808.7,1808.6,1.84344]
[1743798175295,4.79218,1808.7,1808.6,1.84344]
[1743798175497,4.79218,1808.7,1808.6,2.57314]
[1743798177099,5.2371765,1808.7,1808.6,2.57314]
[1743798179400,5.2371765,1808.7,1808.6,1.4669]
[1743798179801,6.7768765,1808.7,1808.6,1.4669]
[1743798179998,1.10624,1808.6,1808.5,1.5187]
[1743798180202,1.10624,1808.6,1808.5,2.625]
[1743798180203,2.64594,1808.6,1808.5,2.625]
[1743798180402,1.10624,1808.6,1808.5,2.625]
[1743798181594,3.0909265,1808.7,1808.6,1.10624]
[1743798181791,6.7759265,1808.7,1808.6,2.62184]
[1743798182003,6.33093,1808.7,1808.6,2.62184]
[1743798182804,1.10624,1808.6,1808.5,1.10629]
[1743798183005,1.10622,1808.7,1808.6,1.10624]
[1743798183197,4.79122,1808.7,1808.6,1.10624]
[1743798183593,6.30942,1808.7,1808.6,1.10624]
[1743798184002,1.10624,1808.6,1808.5,2.57727]
[1743798184205,2.62444,1808.6,1808.5,2.57727]
[1743798188705,1.5182,1808.6,1808.5,2.57727]
[1743798188902,3.19754736,1808.8,1808.6,1.10618]
[1743798189104,2.99684736,1808.8,1808.7,0.7424]
[1743798189303,2.99684736,1808.8,1808.7,1.84858]
[1743798189604,2.99684736,1808.8,1808.7,0.7424]
[1743798190912,2.56462,1808.8,1808.7,1.84858]
[1743798191110,2.56462,1808.8,1808.7,2.56238]
[1743798191913,1.10618,1808.7,1808.6,1.10619]
[1743798192211,1.10624,1808.6,1808.5,2.56997]
[1743798192406,1.10624,1808.6,1808.5,4.06117]
[1743798193110,2.49703,1808.7,1808.6,1.10624]
[1743798194201,2.49703,1808.7,1808.6,2.54774]
[1743798197210,3.2078,1808.8,1808.7,1.10618]
[1743798197406,4.31392,1808.8,1808.7,2.49698]
[1743798197802,4.31392,1808.8,1808.7,1.3908]
[1743798198015,4.31392,1808.8,1808.7,2.49698]
[1743798198311,5.78512,1808.8,1808.7,2.49698]
[1743798198909,2.57732,1808.8,1808.7,2.49698]
[1743798203218,4.23664,1808.8,1808.5,0.7499]
[1743798203519,1.10637,1808.5,1808.4,4.78933]
[1743798204221,1.10637,1808.5,1808.4,6.17763]
[1743798204614,1.10637,1808.4,1808.3,0.7368]
[1743798204819,1.10643,1808.3,1808.2,1.10646]
[1743798205017,1.10632,1808.5,1808.4,1.10631]
[1743798205326,1.11455255,1808.6,1808.5,1.1063]
[1743798205921,0.00829255,1808.6,1808.4,2.1037]
[1743798206118,1.11458255,1808.6,1808.5,3.2314]
[1743798207521,1.11458255,1808.6,1808.5,2.1251]
[1743798207723,2.58508255,1808.6,1808.5,2.1251]
[1743798207922,2.58508255,1808.6,1808.5,3.2314]
[1743798208725,0.00829255,1808.6,1808.5,3.2314]
[1743798209425,1.10642,1808.4,1808.0,9.65718]
[1743798209724,2.64829255,1808.6,1808.5,1.1063]
[1743798210223,1.10632,1808.5,1808.4,1.10632]
[1743798210424,1.10632,1808.5,1808.4,1.85142]
[1743798210719,2.64826255,1808.6,1808.5,1.1063]
[1743798210924,0.00829255,1808.6,1808.5,2.5674]
[1743798212121,1.11453255,1808.6,1808.5,2.5674]
[1743798213824,20.6425377,1808.6,1808.5,2.5674]
[1743798214116,19.5362977,1808.6,1808.5,2.5674]
[1743798214522,19.52800515,1808.6,1808.5,8.7504]
[1743798214720,22.83959926,1809.1,1809.0,1.106]
[1743798214925,1.10603,1809.0,1808.9,1.10601]
[1743798215118,1.10603,1809.0,1808.9,3.29491]
[1743798215421,1.106,1809.0,1808.9,3.29494]
[1743798215621,2.5611,1809.0,1808.9,3.29494]
[1743798216128,2.5611,1809.0,1808.9,0.7514]
[1743798216323,2.5611,1809.0,1808.8,0.00829255]
[1743798216324,1.10606,1808.9,1808.8,0.00829255]
[1743798216525,5.76896,1808.9,1808.8,0.00829255]
[1743798216726,2.56116,1808.9,1808.8,1.11441255]
[1743798217923,2.56116,1808.9,1808.8,0.00829255]
[1743798218220,8.26896,1808.9,1808.8,0.00829255]
[1743798218427,1.10635,1808.5,1808.2,3.9058]
[1743798218619,1.10635,1808.5,1808.4,1.10636]
[1743798218818,1.10635,1808.5,1808.3,2.53628]
[1743798219020,1.10635,1808.5,1808.4,1.10636]
[1743798220424,1.10643,1808.3,1808.2,1.80442]
[1743798220718,1.10641,1808.4,1808.3,1.10639]
[1743798220924,4.31415,1808.5,1808.4,1.10637]
[1743798221624,3.2078,1808.5,1808.4,1.83327]
[1743798221826,4.3141,1808.5,1808.4,1.83327]
[1743798222924,3.2078,1808.5,1808.4,1.83327]
[1743798223120,3.2078,1808.5,1808.4,1.10637]
[1743798223326,1.10627,1808.6,1808.5,1.1063]
[1743798223528,1.10624,1808.6,1808.5,1.1063]
[1743798223720,1.10623,1808.7,1808.6,1.1062]
[1743798223921,1.10622,1808.7,1808.6,1.10618]
[1743798224429,10.35381,1809.0,1808.7,1.10615]
[1743798224430,1.10617,1808.8,1808.7,1.10615]
[1743798224826,3.9068,1809.0,1808.6,4.26861]
[1743798225032,1.10605,1809.0,1808.9,1.10603]
[1743798229435,2.54405,1809.0,1808.9,1.10603]
[1743798229633,1.10606,1808.9,1808.8,3.25527]
[1743798229833,2.54406,1808.9,1808.8,1.80267]
[1743798233835,1.438,1808.9,1808.8,1.80267]
[1743798234235,2.54406,1808.9,1808.8,1.80267]
[1743798234439,1.438,1808.9,1808.8,1.80267]
[1743798234638,2.54406,1808.9,1808.8,3.23257]
[1743798234829,1.10601,1809.0,1808.9,1.10606]
[1743798235139,1.53439255,1809.1,1809.0,1.106]
[1743798235331,2.64033255,1809.1,1809.0,1.106]
[1743798235527,1.53439255,1809.1,1809.0,1.106]
[1743798235838,2.64033255,1809.1,1809.0,1.106]
[1743798237240,1.10605,1809.0,1808.9,1.10601]
[1743798237536,2.61825,1809.0,1808.9,1.10601]
[1743798237936,1.5122,1809.0,1808.9,1.10601]
[1743798238239,2.6182,1809.0,1808.9,1.10601]
[1743798238938,1.5122,1809.0,1808.9,1.10601]
[1743798239137,0.00829255,1809.1,1809.0,1.106]
[1743798239338,2.62643255,1809.1,1809.0,1.106]
[1743798241050,0.00829255,1809.1,1808.7,8.73863]
[1743798241252,27.03212128,1809.4,1809.1,2.76475]
[1743798241546,23.82432128,1809.4,1809.3,1.10581]
[1743798241951,25.29282128,1809.4,1809.3,1.86941]
[1743798242245,25.29282128,1809.4,1809.3,3.28621]
[1743798242845,1.10581,1809.3,1809.2,0.00829255]
[1743798243039,2.9543,1809.3,1808.9,4.6456]
[1743798243247,1.10599,1809.1,1809.0,1.10599]
[1743798243653,1.10594,1809.1,1809.0,1.10599]
[1743798243853,1.106,1809.0,1808.9,7.26434]
[1743798244054,1.4733,1809.0,1808.9,7.26434]
[1743798244542,29.79656128,1809.4,1808.9,8.92344]
[1743798244543,23.82432128,1809.4,1808.9,8.92344]
[1743798244847,23.82432128,1809.4,1809.3,1.10581]
[1743798245457,23.82432128,1809.4,1809.3,2.61851]
[1743798246655,1.11401255,1809.5,1809.4,1.10575]
[1743798246851,1.11401255,1809.5,1809.4,2.52615]
[1743798247458,0.00829255,1809.5,1809.4,2.52615]
[1743798250557,2.50288255,1809.5,1809.4,2.52615]
[1743798250958,1.10579,1809.4,1809.2,1.4378]
[1743798251158,2.49469,1809.4,1809.3,1.1058]
[1743798251465,1.10581,1809.3,1809.2,4.00414]
[1743798251655,2.49471,1809.3,1809.2,4.00414]
[1743798251854,1.3889,1809.3,1809.2,4.00414]
[1743798254061,1.81761255,1809.5,1809.2,2.8983]
[1743798254264,2.55871255,1809.5,1809.4,1.10575]
[1743798254565,1.10575,1809.4,1809.3,2.53008]
[1743798254765,2.55045,1809.4,1809.3,2.53008]
[1743798256362,0.00829255,1809.5,1809.3,2.53008]
[1743798256680,1.10575,1809.4,1809.3,2.53006]
[1743798256861,2.54805,1809.4,1809.3,2.53006]
[1743798257363,1.4423,1809.4,1809.3,2.53006]
[1743798257568,1.11398255,1809.5,1809.4,1.10575]
[1743798257872,0.00829255,1809.5,1809.4,1.10575]
[1743798258169,0.00829255,1809.5,1809.4,2.63255]
[1743798258765,1.11398255,1809.5,1809.4,2.63255]
[1743798259466,1.10578,1809.4,1809.3,1.10575]
[1743798259662,1.11403255,1809.5,1809.4,1.10575]
[1743798259962,1.10594,1809.2,1809.1,1.10591]
[1743798263862,1.10594,1809.2,1809.1,2.53531]
[1743798265668,2.57716,1809.3,1809.2,1.10588]
[1743798266064,7.38867,1809.4,1809.1,1.4294]
[1743798266065,1.1058,1809.4,1809.3,1.10581]
[1743798266762,1.1058,1809.4,1809.3,2.55981]
[1743798266964,0.00829255,1809.5,1809.4,1.10575]
[1743798267270,0.00829255,1809.5,1809.4,2.57545]
[1743798267664,1.11398255,1809.5,1809.4,2.57545]
[1743798269069,2.56558255,1809.5,1809.4,2.57545]
[1743798269968,2.56558255,1809.5,1809.4,1.10575]
[1743798270173,1.10579,1809.4,1809.3,1.10575]
[1743798270470,1.45989255,1809.5,1809.3,2.9746]
[1743798270671,1.10575,1809.4,1809.3,4.08037]
[1743798271872,2.56562255,1809.5,1809.4,1.10575]
[1743798272072,2.56562255,1809.5,1809.4,2.63235]
[1743798272776,1.45989255,1809.5,1809.4,2.63235]
[1743798272977,2.56558255,1809.5,1809.4,2.63235]
[1743798274575,0.00829255,1809.5,1809.4,2.63235]
[1743798274780,0.00829255,1809.5,1809.4,3.37022957]
[1743798275078,1.11398255,1809.5,1809.4,3.37022957]
[1743798275274,1.11398255,1809.5,1809.4,2.63235]
[1743798275980,0.00829255,1809.5,1809.4,2.63235]
[1743798276179,1.11398255,1809.5,1809.4,2.63235]
[1743798276575,0.00829255,1809.5,1809.4,2.63235]
[1743798276878,1.11398255,1809.5,1809.4,2.63235]
[1743798278778,0.00829255,1809.5,1809.4,2.63235]
[1743798278980,1.11398255,1809.5,1809.4,2.63235]
[1743798279180,0.00829255,1809.5,1809.4,2.63235]
[1743798279874,1.11398255,1809.5,1809.4,2.63235]
[1743798280079,0.00829255,1809.5,1809.4,2.63235]
[1743798280379,1.11398255,1809.5,1809.4,2.63235]
[1743798280576,0.00829255,1809.5,1809.4,2.63235]
[1743798281383,1.11398255,1809.5,1809.4,2.63235]
[1743798281574,0.00829255,1809.5,1809.4,2.63235]
[1743798282084,0.00829255,1809.5,1809.4,3.37020331]
[1743798283477,1.11398255,1809.5,1809.4,1.5266]
[1743798283777,2.50829255,1809.5,1809.0,3.2078]
[1743798283982,1.10596,1809.1,1809.0,4.02053]
[1743798284177,1.10596,1809.1,1809.0,4.75843451]
[1743798284381,2.61503,1809.2,1809.1,1.10594]
[1743798285789,1.5091,1809.2,1809.1,1.10594]
[1743798286084,3.2078,1809.3,1809.2,1.10588]
[1743798286286,4.6491,1809.3,1809.2,1.10588]
[1743798286478,5.75491,1809.3,1809.2,1.10588]
[1743798287778,4.31361,1809.3,1809.2,1.10588]
[1743798289187,5.85131,1809.3,1809.2,1.10588]
[1743798290786,1.10588,1809.2,1809.1,2.50278]
[1743798290985,2.64358,1809.2,1809.1,2.50278]
[1743798293890,1.5377,1809.2,1809.1,2.50278]
[1743798294189,2.64358,1809.2,1809.1,2.50278]
[1743798296182,1.5377,1809.2,1809.1,2.50278]
[1743798296384,2.64358,1809.2,1809.1,2.50278]
[1743798297087,1.5377,1809.2,1809.1,2.50278]
[1743798297286,2.64358,1809.2,1809.1,2.50278]
[1743798300989,2.64358,1809.2,1809.1,1.10588]
[1743798301591,3.36408,1809.2,1809.1,1.10588]
[1743798307992,2.64358,1809.2,1809.1,1.10588]
[1743798309502,2.64358,1809.2,1809.1,2.60758]
[1743798310990,1.10594,1809.1,1809.0,1.5013]
[1743798311293,6.28154,1809.1,1809.0,1.5013]
[1743798312401,6.28154,1809.1,1809.0,0.7659]
[1743798312603,1.10606,1808.9,1808.8,1.8665]
[1743798313004,1.10612,1808.8,1808.7,3.27295]
[1743798313203,4.78112,1808.8,1808.7,4.03935]
[1743798313703,6.28692,1808.8,1808.7,4.03935]
[1743798314406,6.28692,1808.8,1808.7,2.9332]
[1743798314704,6.28692,1808.8,1808.7,4.03938]
[1743798316409,6.28692,1808.8,1808.7,2.9332]
[1743798316611,6.28692,1808.8,1808.7,4.03938]
[1743798316808,6.28692,1808.8,1808.7,2.9332]
[1743798317404,6.28692,1808.8,1808.7,4.03938]
[1743798319115,6.28692,1808.8,1808.7,2.9332]
[1743798319411,6.28692,1808.8,1808.7,4.03938]
[1743798320599,6.28692,1808.8,1808.7,2.9332]
[1743798321610,6.28692,1808.8,1808.7,4.03938]
[1743798321912,6.28692,1808.8,1808.7,2.9332]
[1743798322914,6.28692,1808.8,1808.7,0.7075]
[1743798323107,6.28692,1808.8,1808.7,1.81368]
[1743798323305,6.28692,1808.8,1808.7,0.7075]
[1743798327913,6.28692,1808.8,1808.7,2.1583]
[1743798329419,1.10624,1808.6,1808.5,1.86495]
[1743798329619,1.10624,1808.6,1808.5,3.38545]
[1743798330818,1.10624,1808.6,1808.5,4.12755]
[1743798331615,1.10624,1808.6,1808.5,3.0213]
[1743798332617,1.10624,1808.6,1808.5,4.1276]
[1743798335211,4.7139,1808.7,1808.5,3.0213]
[1743798335516,1.10622,1808.7,1808.6,2.63224]
[1743798337213,4.78117,1808.8,1808.7,1.10618]
[1743798337419,4.31392,1808.9,1808.8,1.10612]
[1743798337621,4.78012,1808.9,1808.8,2.53512]
[1743798337822,1.10612,1808.9,1808.8,2.53512]
[1743798338024,4.78005,1809.0,1808.9,1.10606]
[1743798338317,4.78005,1809.0,1808.9,1.5011]
[1743798338523,1.10606,1808.9,1808.8,1.429]
[1743798338724,2.63526,1808.9,1808.8,1.429]
[1743798339723,2.63526,1808.9,1808.8,2.53512]
[1743798339924,1.5292,1808.9,1808.8,2.53512]
[1743798340119,1.10606,1808.9,1808.8,2.53512]
[1743798340324,7.98785,1809.0,1808.9,1.10606]
[1743798340520,3.674,1809.0,1808.9,2.52226]
[1743798341823,4.78,1809.0,1808.9,2.52226]
[1743798343024,6.188,1809.0,1808.9,2.52226]
[1743798346029,1.10606,1808.9,1808.8,2.53508]
[1743798346331,1.10606,1808.9,1808.8,0.6945]
[1743798346332,2.62916,1808.9,1808.8,0.6945]
[1743798346532,3.35716,1808.9,1808.8,0.6945]
[1743798349431,3.35716,1808.9,1808.8,1.80062]
[1743798349633,3.35716,1808.9,1808.8,0.6945]
[1743798350129,3.35716,1808.9,1808.8,1.80062]
[1743798350427,2.62916,1808.9,1808.8,1.80062]
[1743798350825,2.62916,1808.9,1808.8,3.23642]
[1743798352232,1.5231,1808.9,1808.8,3.23642]
[1743798352631,2.62916,1808.9,1808.8,3.23642]
[1743798352935,3.2078,1809.0,1808.9,1.10606]
[1743798353137,7.9868,1809.0,1808.9,2.57226]
[1743798353334,6.8808,1809.0,1808.9,2.57226]
[1743798356339,34.848,1809.1,1809.0,1.106]
[1743798356541,1.4267,1809.4,1809.3,1.10581]
[1743798356740,5.0987,1809.4,1809.3,1.10581]
[1743798357137,1.11403255,1809.5,1809.4,1.10575]
[1743798357439,3.68029255,1809.5,1809.4,1.10575]
[1743798357934,3.68029255,1809.5,1809.4,1.85415]
[1743798358142,3.68029255,1809.5,1809.4,3.36385]
[1743798358535,0.00829255,1809.5,1809.4,4.12645722]
[1743798359935,0.00829255,1809.5,1809.4,1.85415]
[1743798360142,0.00829255,1809.5,1809.4,2.61637108]
[1743798360439,0.00829255,1809.5,1809.4,4.04217108]
[1743798360839,0.00829255,1809.5,1809.4,4.04216959]
[1743798361142,1.11398255,1809.5,1809.4,4.04216959]
[1743798361339,0.00829255,1809.5,1809.4,3.27995]
[1743798361539,1.11398255,1809.5,1809.4,3.27995]
[1743798361842,2.55378255,1809.5,1809.4,3.27995]
[1743798362139,1.44809255,1809.5,1809.1,2.76472]
[1743798362340,1.4398,1809.4,1809.2,4.06216762]
[1743798362643,2.5456,1809.4,1809.3,1.10581]
[1743798362843,1.10581,1809.3,1809.2,1.80963]
[1743798363046,2.54561,1809.3,1809.2,1.80963]
[1743798363349,5.1108,1809.3,1809.2,1.80963]
[1743798363845,5.1108,1809.3,1809.2,3.30013]
[1743798364046,6.21661,1809.3,1809.2,3.30013]
[1743798364757,1.10608,1808.9,1808.8,1.10606]
[1743798364959,3.671,1808.9,1808.8,0.76221828]
[1743798365258,3.671,1808.9,1808.8,1.86828828]
[1743798365650,3.671,1808.9,1808.8,4.10268828]
[1743798366857,4.77706,1808.9,1808.8,4.10268828]
[1743798367656,4.77706,1808.9,1808.8,0.76221828]
[1743798367854,6.18686,1808.9,1808.8,1.86854885]
[1743798368050,6.18686,1808.9,1808.8,1.86855238]
[1743798368257,6.18686,1808.9,1808.8,3.26025324]
[1743798369262,6.18686,1808.9,1808.8,3.26024932]
[1743798369760,6.18686,1808.9,1808.8,2.49782]
[1743798370061,6.18686,1808.9,1808.8,3.26022882]
[1743798370258,6.18686,1808.9,1808.8,2.49782]
[1743798370757,1.10591,1809.2,1809.1,1.10589]
[1743798370959,4.77691,1809.2,1809.1,1.10589]
[1743798371554,6.25731,1809.2,1809.1,1.10589]
[1743798371757,6.25731,1809.2,1809.1,2.50209]
[1743798372262,6.25731,1809.2,1809.1,1.3962]
[1743798372465,6.25731,1809.2,1809.1,2.50214]
[1743798373160,5.1514,1809.2,1809.1,2.50214]
[1743798373466,3.671,1809.4,1809.3,1.10581]
[1743798373669,0.00829255,1809.5,1809.4,1.10575]
[1743798373957,0.00829255,1809.5,1809.4,1.86790414]
[1743798374368,0.00829255,1809.5,1809.4,2.64690414]
[1743798374563,1.11398255,1809.5,1809.4,2.64690414]
[1743798374864,0.00829255,1809.5,1809.4,2.64690414]
[1743798375065,0.00829255,1809.5,1809.4,1.88475]
[1743798375564,1.11398255,1809.5,1809.4,1.88475]
[1743798375764,1.40609255,1809.5,1809.4,1.88475]
[1743798376471,1.40609255,1809.5,1809.4,2.64640041]
[1743798376767,1.40609255,1809.5,1809.4,1.88475]
[1743798376965,0.00829255,1809.5,1809.4,2.64638473]
[1743798377765,0.00829255,1809.5,1809.4,3.30045]
[1743798378168,0.00829255,1809.5,1809.4,4.06201345]
[1743798378863,0.00829255,1809.5,1809.4,4.06196912]
[1743798380268,0.00829255,1809.5,1809.4,4.06197021]
[1743798381668,0.00829255,1809.5,1809.4,3.30045]
[1743798382166,0.00829255,1809.5,1809.4,4.06198185]
[1743798382462,0.00829255,1809.5,1809.4,3.30045]
[1743798382669,0.00829255,1809.5,1809.4,4.06199928]
[1743798382867,0.00829255,1809.5,1809.4,4.06200993]
[1743798383862,0.00829255,1809.5,1809.4,3.30045]
[1743798384066,2.53628255,1809.5,1809.4,1.88475]
[1743798384372,0.00829255,1809.5,1809.4,1.88475]
[1743798384575,0.00829255,1809.5,1809.4,2.64639744]
[1743798384770,0.00829255,1809.5,1809.4,4.18139744]
[1743798385073,0.00829255,1809.5,1809.4,3.41975]
[1743798385770,0.00829255,1809.5,1809.4,4.18146839]
[1743798388777,0.00829255,1809.5,1809.4,4.18139131]
[1743798389980,0.00829255,1809.5,1809.4,4.18136437]
[1743798391082,0.00829255,1809.5,1809.4,6.68136437]
[1743798391386,7.98129,1809.9,1809.8,1.10551]
[1743798391679,9.50599,1809.9,1809.8,1.10551]
[1743798392381,9.50599,1809.9,1809.8,1.87271]
[1743798392776,9.50595,1809.9,1809.8,1.87271]
[1743798393381,8.4005,1809.9,1809.8,1.87271]
[1743798393782,9.50595,1809.9,1809.8,1.87271]
[1743798394877,8.4005,1809.9,1809.8,1.87271]
[1743798395683,8.4005,1809.9,1809.8,3.31891]
[1743798396282,1.90488255,1810.0,1809.9,1.10545]
[1743798396283,0.00829255,1810.0,1809.9,1.10545]
[1743798396486,0.00829255,1810.0,1809.9,6.52072784]
[1743798396781,0.00829255,1810.0,1809.9,49.82072784]
[1743798397483,0.00829255,1810.0,1809.9,49.82080637]
[1743798400386,0.00829255,1810.0,1809.9,6.52080637]
[1743798401186,0.00829255,1810.0,1809.9,6.51983661]
[1743798401586,0.00829255,1810.0,1809.9,6.51986027]
[1743798404792,0.00829255,1810.0,1809.9,6.51996633]
[1743798408495,0.00829255,1810.0,1809.9,6.51995541]
[1743798410598,0.00829255,1810.0,1809.9,6.51998059]
[1743798412294,0.00829255,1810.0,1809.9,6.52009447]
[1743798414102,0.00829255,1810.0,1809.9,6.52028775]
[1743798416197,0.00829255,1810.0,1809.9,49.82028775]
[1743798416395,2.55e-06,1810.0,1809.9,49.82028775]
[1743798422915,2.55e-06,1810.0,1809.9,49.82225935]
[1743798428622,2.55e-06,1810.0,1809.9,45.87605935]
[1743798428924,2.55e-06,1810.0,1809.9,42.66825935]
[1743798429527,1.40110255,1810.0,1809.9,42.66825935]
[1743798429921,2.15600255,1810.0,1809.9,42.66825935]
[1743798430425,2.15600255,1810.0,1809.9,42.6683367]
[1743798432322,1.40110255,1810.0,1809.9,42.66833672]
[1743798432521,1.40110255,1810.0,1809.9,44.18863672]
[1743798432930,1.40110255,1810.0,1809.9,42.66833672]
[1743798433832,1.40110255,1810.0,1809.9,42.66833672]
[1743798434027,1.40110255,1810.0,1809.9,41.90545]
[1743798434222,1.40110255,1810.0,1809.9,42.66836097]
[1743798434428,1.40110255,1810.0,1809.9,1.86836097]
[1743798434626,2.50649255,1810.0,1809.9,1.86836097]
[1743798434824,2.50649255,1810.0,1809.9,1.10545]
[1743798435226,1.10551,1809.9,1809.8,1.10546]
[1743798435424,7.00211,1809.9,1809.8,1.10546]
[1743798435727,9.50211,1809.9,1809.8,1.10546]
[1743798435934,1.10551,1809.8,1809.7,1.11380255]
[1743798436121,6.56551,1809.8,1809.7,1.11380255]
[1743798436327,9.06551,1809.8,1809.7,1.11380255]
[1743798436522,9.06551,1809.8,1809.7,0.00829255]
[1743798441627,9.06551,1809.8,1809.7,1.11386255]
[1743798442334,9.06551,1809.8,1809.7,0.00829255]
[1743798444930,5.85771,1809.8,1809.7,0.00829255]
[1743798445131,9.06551,1809.8,1809.7,0.00829255]
[1743798445935,3.35771,1809.8,1809.7,1.11386255]
[1743798446236,5.1313,1809.8,1809.7,1.11386255]
[1743798446436,1.4683,1809.8,1809.7,1.11386255]
[1743798446826,1.4683,1809.8,1809.7,3.37046255]
[1743798448839,1.4683,1809.8,1809.7,1.87826255]
[1743798449239,2.57381,1809.8,1809.7,1.87826255]
[1743798450038,1.4683,1809.8,1809.7,1.87826255]
[1743798450439,1.4683,1809.8,1809.7,3.35496255]
[1743798451841,2.57381,1809.8,1809.7,3.35496255]
[1743798452143,2.57381,1809.8,1809.7,1.87826255]
[1743798452546,1.4683,1809.8,1809.7,1.87826255]
[1743798452744,1.4683,1809.8,1809.7,3.35496255]
[1743798453646,7.97724255,1810.0,1809.9,1.10545]
[1743798453837,9.43834255,1810.0,1809.9,1.10545]
[1743798454347,5.77429255,1810.0,1809.9,1.10545]
[1743798454545,9.43729255,1810.0,1809.9,1.10545]
[1743798454743,9.43729255,1810.0,1809.9,1.86805]
[1743798457148,5.12410255,1810.0,1809.9,1.86805]
[1743798457946,3.66300255,1810.0,1809.9,1.86805]
[1743798458545,2.55e-06,1810.0,1809.9,5.837729]
[1743798459244,2.55e-06,1810.0,1809.9,46.637729]
[1743798460545,2.55e-06,1810.0,1809.9,46.63762306]
[1743798463052,2.55e-06,1810.0,1809.9,5.83762306]
[1743798465357,2.55e-06,1810.0,1809.9,2.62982306]
[1743798466747,2.55e-06,1810.0,1809.9,5.83762306]
[1743798469551,2.55e-06,1810.0,1809.9,8.33762306]
[1743798469950,2.55e-06,1810.0,1809.9,9.79212306]
[1743798471560,2.55e-06,1810.0,1809.9,9.79194814]
[1743798475358,2.55e-06,1810.0,1809.9,9.79202145]
[1743798480660,2.55e-06,1810.0,1809.9,9.79197175]
[1743798482058,2.55e-06,1810.0,1809.9,9.79203401]
[1743798485767,2.55e-06,1810.0,1809.9,9.03035]
[1743798486065,2.55e-06,1810.0,1809.9,9.79253589]
[1743798486665,2.55e-06,1810.0,1809.9,7.29253589]
[1743798489071,2.55e-06,1810.0,1809.9,9.79253589]
[1743798489666,2.55e-06,1810.0,1809.9,9.79320944]
[1743798491470,2.55e-06,1810.0,1809.9,9.79322222]
[1743798493071,2.55e-06,1810.0,1809.9,7.29322222]
[1743798494567,2.55e-06,1810.0,1809.9,9.79322222]
[1743798497173,2.55e-06,1810.0,1809.9,7.29322222]
[1743798498976,2.55e-06,1810.0,1809.9,7.29427146]
[1743798499179,0.7341,1810.2,1810.1,1.10533]
[1743798499380,0.7341,1810.2,1810.1,5.07705146]
[1743798500379,0.00829255,1810.3,1810.2,1.10527]
[1743798500572,0.00829255,1810.3,1810.2,3.30269146]
[1743798500771,0.00829255,1810.3,1810.2,3.30289768]
[1743798500974,0.00829255,1810.3,1810.2,1.86939768]
[1743798503073,1.45699255,1810.3,1810.2,1.86939768]
[1743798504479,1.45699255,1810.3,1810.2,1.86951187]
[1743798507974,1.45699255,1810.3,1810.2,1.86948128]
[1743798508579,1.45699255,1810.3,1810.2,1.86947466]
[1743798510183,1.45699255,1810.3,1810.2,1.86947129]
[1743798514284,1.45699255,1810.3,1810.2,4.14087129]
[1743798514883,0.00829255,1810.3,1810.2,4.14087129]
[1743798516385,0.00829255,1810.3,1810.2,4.1407389]
[1743798516779,0.00829255,1810.3,1810.2,4.14068455]
[1743798517082,2.55e-06,1810.3,1810.2,4.14068455]
[1743798517986,2.55e-06,1810.3,1810.2,7.79668455]
[1743798519677,2.55e-06,1810.3,1810.2,7.79601266]
[1743798521280,2.55e-06,1810.3,1810.2,7.79586919]
[1743798523288,2.55e-06,1810.3,1810.2,7.03267]
[1743798523490,2.55e-06,1810.3,1810.2,7.79444173]
[1743798524082,2.55e-06,1810.3,1810.2,7.79443621]
[1743798527093,2.55e-06,1810.3,1810.2,7.79413029]
[1743798528496,2.55e-06,1810.3,1810.2,7.03267]
[1743798529491,2.55e-06,1810.3,1810.2,3.37667]
[1743798529793,2.55e-06,1810.3,1810.2,7.03167]
[1743798533497,2.55e-06,1810.3,1810.2,7.79289318]
[1743798534196,2.55e-06,1810.3,1810.2,7.79285501]
[1743798535095,2.55e-06,1810.3,1810.2,3.36745501]
[1743798535992,2.55e-06,1810.3,1810.2,3.36747938]
[1743798537899,2.55e-06,1810.3,1810.2,3.36763326]
[1743798540612,1.43590255,1810.3,1810.2,3.36763326]
[1743798540799,0.20887255,1810.3,1810.2,3.36763326]
[1743798540999,0.7385,1810.4,1810.3,1.1052]
[1743798541204,0.7385,1810.4,1810.3,6.53435339]
[1743798542713,0.7385,1810.4,1810.3,6.53464355]
[1743798544011,2.247,1810.4,1810.3,6.53464355]
[1743798544718,2.247,1810.4,1810.3,6.5350146]
[1743798551316,1.5085,1810.4,1810.3,6.5350146]
[1743798552624,2.2709,1810.4,1810.3,3.3272146]
[1743798553426,2.2709,1810.4,1810.3,1.8675146]
[1743798555822,2.2709,1810.4,1810.3,1.86726725]
[1743798556425,2.2709,1810.4,1810.3,1.86717191]
[1743798557219,2.2709,1810.4,1810.3,1.86717153]
[1743798559026,2.2709,1810.4,1810.3,3.27037153]
[1743798559726,0.00829255,1810.5,1810.4,1.10514]
[1743798559922,0.00829255,1810.5,1810.4,4.88591153]
[1743798561435,0.00829255,1810.5,1810.4,4.88572867]
[1743798563240,0.00829255,1810.5,1810.4,4.12394]
[1743798563536,0.00829255,1810.5,1810.4,4.88576741]
[1743798568839,2.55e-06,1810.5,1810.4,4.88576741]
[1743798569843,3.2078,1811.4,1811.0,1.10478]
[1743798570033,5.0735,1811.3,1811.2,1.10465]
[1743798570236,5.0735,1811.3,1811.2,2.62325]
[1743798570441,7.5735,1811.3,1811.2,2.62325]
[1743798570739,38.0238,1811.6,1811.3,1.10459]
[1743798571042,8.2731,1811.8,1811.7,1.10435]
[1743798571347,12.9409,1811.8,1811.7,1.10435]
[1743798571549,1.10435,1811.7,1811.6,2.62296]
[1743798571844,1.4225,1811.7,1811.4,3.48248]
[1743798572048,4.31225,1811.6,1811.5,1.10442]
[1743798572348,2.52687,1811.7,1811.6,1.10441]
[1743798572946,5.02687,1811.7,1811.6,1.10441]